[Event "ETCC Women 2013"]
[Site "Warsaw"]
[Date "2013.11.12"]
[Round "5"]
[White "Vanagaite, Giedre"]
[Black "Voiska, Margarita"]
[Result "1/2-1/2"]
[ECO "A41"]
[WhiteElo "2057"]
[BlackElo "2298"]
[PlyCount "139"]
[EventDate "2013.??.??"]
[EventCountry "POL"]
[WhiteTeam "Lithuania"]
[BlackTeam "Bulgaria"]
[WhiteTeamCountry "LTU"]
[BlackTeamCountry "BUL"]
[TimeControl "40/5400+30:1800+30"]

1. d4 {[%emt 0:00:00]} d6 {[%emt 0:00:00]} 2. Nf3 {[%emt 0:00:03]} Bg4 {[%emt
0:00:22]} 3. e4 {[%emt 0:01:17]} e6 {[%emt 0:02:11]} 4. Nc3 {[%emt 0:03:56]}
Nf6 {[%emt 0:04:25]} 5. h3 {[%emt 0:00:35]} Bh5 {[%emt 0:00:21]} 6. Qe2 {[%emt
0:01:57]} c6 {[%emt 0:03:52]} 7. g4 {[%emt 0:00:24]} Bg6 {[%emt 0:00:10]} 8. h4
{[%emt 0:00:19]} h5 {[%emt 0:01:57]} 9. g5 {[%emt 0:00:20]} Nfd7 {[%emt 0:01:
51]} 10. Bh3 {[%emt 0:00:50]} Be7 {[%emt 0:04:19]} 11. Bf4 {[%emt 0:02:38]} Nb6
{[%emt 0:17:40]} 12. O-O {[%emt 0:05:47]} N8d7 {[%emt 0:02:11]} 13. a4 {[%emt
0:08:08]} a5 {[%emt 0:04:54]} 14. Bg3 {[%emt 0:07:00]} O-O {[%emt 0:07:15]} 15.
Ne1 {[%emt 0:02:38]} d5 {[%emt 0:05:56]} 16. Ng2 {[%emt 0:05:45]} Bb4 {[%emt 0:
07:21]} 17. Nf4 {[%emt 0:06:14]} Re8 {[%emt 0:09:51]} 18. Nxg6 {[%emt 0:05:23]}
fxg6 {[%emt 0:00:20]} 19. Qd3 {[%emt 0:03:15]} Bxc3 {[%emt 0:07:31]} 20. Qxc3 {
[%emt 0:00:24]} Nf8 {[%emt 0:06:12]} 21. b3 {[%emt 0:02:24]} dxe4 {[%emt 0:03:
29]} 22. Qe3 {[%emt 0:06:03]} Nd5 {[%emt 0:00:31]} 23. Qxe4 {[%emt 0:00:43]}
Nc3 {[%emt 0:01:04]} 24. Qe1 {[%emt 0:03:21]} Nd5 {[%emt 0:01:38]} 25. Rd1 {
[%emt 0:00:54]} Kh7 {[%emt 0:01:34]} 26. Qd2 {[%emt 0:01:01]} Ne7 {[%emt 0:00:
43]} 27. c4 {[%emt 0:15:55]} Nf5 {[%emt 0:00:22]} 28. Qf4 {[%emt 0:09:18]} Qb6
{[%emt 0:01:05]} 29. Rd3 {[%emt 0:00:08]} c5 {[%emt 0:02:01]} 30. Bxf5 {[%emt
0:00:51]} exf5 {[%emt 0:00:10]} 31. dxc5 {[%emt 0:01:08]} Qxc5 {[%emt 0:00:02]}
32. Qd6 {[%emt 0:00:43]} Qc8 {[%emt 0:02:04]} 33. Rfd1 {[%emt 0:01:03]} Ra6 {
[%emt 0:00:52]} 34. Qc7 {[%emt 0:01:12]} Ne6 {[%emt 0:01:45]} 35. Qxc8 {[%emt
0:00:20]} Rxc8 {[%emt 0:00:01]} 36. Bd6 {[%emt 0:01:04]} Rd8 {[%emt 0:01:07]}
37. Ba3 {[%emt 0:00:15]} Rxd3 {[%emt 0:00:22]} 38. Rxd3 {[%emt 0:00:01]} Rb6 {
[%emt 0:00:37]} 39. c5 {[%emt 0:03:16]} Rc6 {[%emt 0:00:06]} 40. Rd7 {[%emt 0:
00:00]} Rc7 {[%emt 0:00:00]} 41. Rxc7 {[%emt 0:09:04]} Nxc7 {[%emt 0:01:20]}
42. Kf1 {[%emt 0:00:22]} Kg8 {[%emt 0:10:49]} 43. Ke2 {[%emt 0:00:51]} Kf7 {
[%emt 0:00:17]} 44. Kd3 {[%emt 0:00:24]} Ke6 {[%emt 0:00:57]} 45. Kd4 {[%emt 0:
01:04]} Nd5 {[%emt 0:09:14]} 46. Bc1 {[%emt 0:05:25]} f4 {[%emt 0:07:42]} 47.
f3 {[%emt 0:02:11]} Ne7 {[%emt 0:00:38]} 48. Bxf4 {[%emt 0:01:32]} Nf5+ {[%emt
0:00:07]} 49. Ke4 {[%emt 0:00:45]} Nxh4 {[%emt 0:02:17]} 50. Bc7 {[%emt 0:00:
19]} Kd7 {[%emt 0:00:07]} 51. Bxa5 {[%emt 0:00:15]} Kc6 {[%emt 0:00:06]} 52.
Be1 {[%emt 0:00:25]} Nf5 {[%emt 0:00:35]} 53. b4 {[%emt 0:01:48]} h4 {[%emt 0:
00:56]} 54. f4 {[%emt 0:02:38]} h3 {[%emt 0:00:46]} 55. Kf3 {[%emt 0:00:15]}
Ne3 {[%emt 0:01:44]} 56. Kg3 {[%emt 0:00:51]} Nd1 {[%emt 0:01:18]} 57. Kxh3 {
[%emt 0:00:38]} Nb2 {[%emt 0:00:10]} 58. Bc3 {[%emt 0:01:10]} Nxa4 {[%emt 0:00:
02]} 59. Bxg7 {[%emt 0:00:09]} b6 {[%emt 0:00:45]} 60. cxb6 {[%emt 0:00:38]}
Nxb6 {[%emt 0:00:03]} 61. Bf8 {[%emt 0:01:09]} Kd7 {[%emt 0:01:16]} 62. Kg4 {
[%emt 0:00:45]} Ke6 {[%emt 0:00:46]} 63. Kf3 {[%emt 0:01:00]} Kf5 {[%emt 0:00:
28]} 64. Bd6 {[%emt 0:00:26]} Nc4 {[%emt 0:00:31]} 65. Bc7 {[%emt 0:00:17]} Na3
{[%emt 0:00:26]} 66. Ke3 {[%emt 0:00:22]} Nc2+ {[%emt 0:00:44]} 67. Kd3 {[%emt
0:05:22]} Nxb4+ {[%emt 0:00:02]} 68. Kc4 {[%emt 0:00:10]} Nc2 {[%emt 0:00:11]}
69. Kd3 {[%emt 0:01:33]} Nb4+ {[%emt 0:00:15]} 70. Kc4 {[%emt 0:00:19]} 1/2-1/2

[Event "ETCC Women 2013"]
[Site "Warsaw"]
[Date "2013.11.12"]
[Round "5"]
[White "Vega Gutierrez, Sabrina"]
[Black "Manakova, Maria"]
[Result "1-0"]
[ECO "B33"]
[WhiteElo "2385"]
[BlackElo "2324"]
[PlyCount "83"]
[EventDate "2013.??.??"]
[EventCountry "POL"]
[WhiteTeam "Spain"]
[BlackTeam "Serbia"]
[WhiteTeamCountry "ESP"]
[BlackTeamCountry "SRB"]
[TimeControl "40/5400+30:1800+30"]

1. e4 {[%emt 0:00:00]} c5 {[%emt 0:00:00]} 2. Nf3 {[%emt 0:00:00]} Nc6 {[%emt
0:00:00]} 3. d4 {[%emt 0:00:00]} cxd4 {[%emt 0:00:11]} 4. Nxd4 {[%emt 0:00:22]}
Nf6 {[%emt 0:00:00]} 5. Nc3 {[%emt 0:00:00]} e5 {[%emt 0:00:00]} 6. Ndb5 {
[%emt 0:00:00]} d6 {[%emt 0:00:00]} 7. Bg5 {[%emt 0:00:00]} a6 {[%emt 0:00:00]}
8. Na3 {[%emt 0:00:00]} b5 {[%emt 0:00:00]} 9. Nd5 {[%emt 0:00:42]} Be7 {[%emt
0:00:00]} 10. Bxf6 {[%emt 0:00:07]} Bxf6 {[%emt 0:00:00]} 11. c4 {[%emt 0:00:
44]} b4 {[%emt 0:00:00]} 12. Nc2 {[%emt 0:00:08]} a5 {[%emt 0:01:50]} 13. g3 {
[%emt 0:00:45]} O-O {[%emt 0:00:21]} 14. Bg2 {[%emt 0:15:47]} Bg5 {[%emt 0:02:
05]} 15. O-O {[%emt 0:00:12]} Be6 {[%emt 0:01:19]} 16. Qd3 {[%emt 0:00:53]} Qb8
{[%emt 0:02:33]} 17. Rfd1 {[%emt 0:10:12]} Bd8 {[%emt 0:04:31]} 18. b3 {[%emt
0:32:37]} Bb6 {[%emt 0:02:43]} 19. Nxb6 {[%emt 0:01:53]} Qxb6 {[%emt 0:00:04]}
20. Qe2 {[%emt 0:06:47]} Rfd8 {[%emt 0:01:02]} 21. Rd3 {[%emt 0:00:21]} a4 {
[%emt 0:32:03]} 22. Rad1 {[%emt 0:01:05]} Qc5 {[%emt 0:03:34]} 23. R1d2 {[%emt
0:01:48]} axb3 {[%emt 0:02:13]} 24. axb3 {[%emt 0:00:03]} g6 {[%emt 0:12:42]}
25. Bf3 {[%emt 0:04:53]} h5 {[%emt 0:01:16]} 26. Kg2 {[%emt 0:00:51]} Ra2 {
[%emt 0:03:00]} 27. Qd1 {[%emt 0:01:33]} Kf8 {[%emt 0:11:22]} 28. h4 {[%emt 0:
01:26]} Ke7 {[%emt 0:01:43]} 29. Nd4 {[%emt 0:04:34]} Rxd2 {[%emt 0:02:37]} 30.
Nxc6+ {[%emt 0:00:04]} Qxc6 {[%emt 0:00:02]} 31. Qxd2 {[%emt 0:00:33]} Qc5 {
[%emt 0:00:36]} 32. Qg5+ {[%emt 0:06:50]} Ke8 {[%emt 0:00:23]} 33. Qf6 {[%emt
0:01:26]} Rd7 {[%emt 0:02:03]} 34. Rd2 {[%emt 0:03:46]} Qa7 {[%emt 0:07:03]}
35. Kh2 {[%emt 0:00:56]} Qa1 {[%emt 0:00:39]} 36. Bg2 {[%emt 0:01:44]} Qa7 {
[%emt 0:04:25]} 37. Bh3 {[%emt 0:00:23]} Bxh3 {[%emt 0:00:41]} 38. Kxh3 {[%emt
0:00:02]} Qc5 {[%emt 0:04:59]} 39. Kg2 {[%emt 0:00:00]} Rd8 {[%emt 0:00:00]}
40. Rd5 Qc7 41. Rb5 Qc6 42. Rxe5+ 1-0

[Event "ETCC Women 2013"]
[Site "Warsaw"]
[Date "2013.11.12"]
[Round "5"]
[White "Videnova, Iva"]
[Black "Zaksaite, Salomeja"]
[Result "0-1"]
[ECO "B33"]
[WhiteElo "2272"]
[BlackElo "2200"]
[PlyCount "98"]
[EventDate "2013.??.??"]
[EventCountry "POL"]
[WhiteTeam "Bulgaria"]
[BlackTeam "Lithuania"]
[WhiteTeamCountry "BUL"]
[BlackTeamCountry "LTU"]
[TimeControl "40/5400+30:1800+30"]

1. e4 {[%emt 0:00:00]} c5 {[%emt 0:00:00]} 2. Nf3 {[%emt 0:00:00]} Nc6 {[%emt
0:00:00]} 3. d4 {[%emt 0:00:00]} cxd4 {[%emt 0:00:05]} 4. Nxd4 {[%emt 0:00:00]}
Nf6 {[%emt 0:00:21]} 5. Nc3 {[%emt 0:00:02]} e5 {[%emt 0:00:09]} 6. Ndb5 {
[%emt 0:00:08]} d6 {[%emt 0:00:08]} 7. Bg5 {[%emt 0:00:20]} a6 {[%emt 0:00:10]}
8. Na3 {[%emt 0:00:04]} b5 {[%emt 0:00:06]} 9. Nd5 {[%emt 0:00:05]} Be7 {[%emt
0:00:07]} 10. Bxf6 {[%emt 0:00:06]} Bxf6 {[%emt 0:00:03]} 11. c4 {[%emt 0:00:
11]} Nd4 {[%emt 0:01:08]} 12. cxb5 {[%emt 0:00:24]} Bb7 {[%emt 0:00:24]} 13.
Nc3 {[%emt 0:00:20]} O-O {[%emt 0:01:31]} 14. bxa6 {[%emt 0:00:09]} Rxa6 {
[%emt 0:00:16]} 15. Bxa6 {[%emt 0:00:07]} Bxa6 {[%emt 0:00:03]} 16. h4 {[%emt
0:00:09]} Qb8 {[%emt 0:08:10]} 17. Qd2 {[%emt 0:01:50]} Bd8 {[%emt 0:03:50]}
18. O-O-O {[%emt 0:08:43]} Ba5 {[%emt 0:08:38]} 19. Rh3 {[%emt 0:10:58]} f5 {
[%emt 0:30:05]} 20. Nc2 {[%emt 0:02:58]} Ne2+ {[%emt 0:05:58]} 21. Kb1 {[%emt
0:05:45]} Nxc3+ {[%emt 0:02:22]} 22. Rxc3 {[%emt 0:00:17]} Bxc3 {[%emt 0:00:11]
} 23. Qxc3 {[%emt 0:00:09]} fxe4 {[%emt 0:00:38]} 24. Nb4 {[%emt 0:06:49]} Be2
{[%emt 0:06:07]} 25. Re1 {[%emt 0:10:42]} Rxf2 {[%emt 0:01:22]} 26. Rxe2 {
[%emt 0:25:04]} Rxe2 {[%emt 0:00:20]} 27. Qc4+ {[%emt 0:00:27]} d5 {[%emt 0:01:
25]} 28. Qxe2 {[%emt 0:00:07]} Qxb4 {[%emt 0:00:04]} 29. a3 {[%emt 0:00:30]}
Qd4 {[%emt 0:09:20]} 30. Qb5 {[%emt 0:03:11]} h6 {[%emt 0:07:32]} 31. Qc6 {
[%emt 0:17:35]} Qd3+ {[%emt 0:01:07]} 32. Qc2 {[%emt 0:01:06]} Qxc2+ {[%emt 0:
07:53]} 33. Kxc2 {[%emt 0:00:07]} Kf7 {[%emt 0:00:02]} 34. a4 {[%emt 0:01:16]}
Ke6 {[%emt 0:00:05]} 35. g4 {[%emt 0:00:52]} Kd6 {[%emt 0:02:20]} 36. b4 {
[%emt 0:02:27]} Kc6 {[%emt 0:00:13]} 37. Kc3 {[%emt 0:01:38]} d4+ {[%emt 0:02:
18]} 38. Kc4 {[%emt 0:00:32]} e3 {[%emt 0:00:30]} 39. b5+ {[%emt 0:00:53]} Kb6
{[%emt 0:00:22]} 40. Kd3 {[%emt 0:00:00]} e4+ {[%emt 0:00:00]} 41. Ke2 {[%emt
0:06:03]} Kc5 {[%emt 0:03:39]} 42. g5 {[%emt 0:00:37]} hxg5 {[%emt 0:00:27]}
43. hxg5 {[%emt 0:00:14]} g6 {[%emt 0:00:06]} 44. Ke1 {[%emt 0:01:09]} d3 {
[%emt 0:01:58]} 45. Kd1 {[%emt 0:00:27]} e2+ {[%emt 0:00:32]} 46. Kd2 {[%emt 0:
00:17]} e3+ {[%emt 0:00:22]} 47. Ke1 {[%emt 0:00:07]} Kb6 {[%emt 0:00:24]} 48.
a5+ {[%emt 0:00:08]} Kxa5 {[%emt 0:00:08]} 49. b6 {[%emt 0:00:07]} d2+ {[%emt
0:00:04]} 0-1

[Event "ETCC Women 2013"]
[Site "Warsaw"]
[Date "2013.11.12"]
[Round "5"]
[White "Vojinovic, Jovana"]
[Black "Matnadze, Ana"]
[Result "0-1"]
[ECO "A12"]
[WhiteElo "2352"]
[BlackElo "2373"]
[PlyCount "66"]
[EventDate "2013.??.??"]
[EventCountry "POL"]
[WhiteTeam "Serbia"]
[BlackTeam "Spain"]
[WhiteTeamCountry "SRB"]
[BlackTeamCountry "ESP"]
[TimeControl "40/5400+30:1800+30"]

1. b3 {[%emt 0:00:00]} d5 {[%emt 0:00:00]} 2. Bb2 {[%emt 0:00:00]} Nf6 {[%emt
0:00:00]} 3. Nf3 {[%emt 0:00:16]} g6 {[%emt 0:00:25]} 4. c4 {[%emt 0:00:49]} c6
{[%emt 0:00:33]} 5. cxd5 {[%emt 0:05:45]} cxd5 {[%emt 0:00:32]} 6. Bxf6 {[%emt
0:02:33]} exf6 {[%emt 0:00:06]} 7. e3 {[%emt 0:00:01]} Nc6 {[%emt 0:00:29]} 8.
Nc3 {[%emt 0:00:40]} a6 {[%emt 0:06:02]} 9. Be2 {[%emt 0:03:26]} d4 {[%emt 0:
00:27]} 10. exd4 {[%emt 0:01:07]} Nxd4 {[%emt 0:00:27]} 11. Bc4 {[%emt 0:14:47]
} Bg4 {[%emt 0:26:40]} 12. Bd5 {[%emt 0:08:05]} Qe7+ {[%emt 0:03:55]} 13. Kf1 {
[%emt 0:00:23]} Bh6 {[%emt 0:09:46]} 14. h4 {[%emt 0:03:57]} O-O {[%emt 0:02:
15]} 15. h5 {[%emt 0:01:04]} Kg7 {[%emt 0:01:21]} 16. Rh4 {[%emt 0:05:59]} f5 {
[%emt 0:02:52]} 17. Rxg4 {[%emt 0:03:44]} Nxf3 {[%emt 0:00:30]} 18. Ra4 {[%emt
0:00:03]} Nxd2+ {[%emt 0:02:40]} 19. Kg1 {[%emt 0:00:05]} Qe5 {[%emt 0:02:13]}
20. Rc1 {[%emt 0:46:03]} Rac8 {[%emt 0:02:16]} 21. Rc2 {[%emt 0:01:07]} Rxc3 {
[%emt 0:05:46]} 22. Qa1 {[%emt 0:00:05]} Re3 {[%emt 0:03:16]} 23. Qxe5+ {[%emt
0:00:13]} Rxe5 {[%emt 0:00:06]} 24. Bxb7 {[%emt 0:00:02]} Re1+ {[%emt 0:03:14]}
25. Kh2 {[%emt 0:00:05]} Re2 {[%emt 0:02:16]} 26. Rc8 {[%emt 0:02:08]} Rxc8 {
[%emt 0:00:19]} 27. Bxc8 {[%emt 0:00:01]} Rxf2 {[%emt 0:00:45]} 28. hxg6 {
[%emt 0:00:46]} Bf4+ {[%emt 0:03:27]} 29. Kh3 {[%emt 0:00:08]} hxg6 {[%emt 0:
00:55]} 30. Bxa6 {[%emt 0:00:59]} Ne4 {[%emt 0:01:27]} 31. Bb7 {[%emt 0:00:11]}
Nc5 {[%emt 0:04:28]} 32. Rb4 {[%emt 0:00:56]} Nxb7 {[%emt 0:01:09]} 33. g3 {
[%emt 0:00:13]} Be5 {[%emt 0:00:43]} 0-1

[Event "ETCC Women 2013"]
[Site "Warsaw"]
[Date "2013.11.12"]
[Round "5"]
[White "Worek, Joanna"]
[Black "Efroimski, Marsel"]
[Result "1/2-1/2"]
[ECO "D85"]
[WhiteElo "2336"]
[BlackElo "2313"]
[PlyCount "132"]
[EventDate "2013.??.??"]
[EventCountry "POL"]
[WhiteTeam "Poland"]
[BlackTeam "Israel"]
[WhiteTeamCountry "POL"]
[BlackTeamCountry "ISR"]
[TimeControl "40/5400+30:1800+30"]

1. d4 {[%emt 0:00:00]} Nf6 {[%emt 0:00:00]} 2. c4 {[%emt 0:00:00]} g6 {[%emt 0:
00:00]} 3. Nc3 {[%emt 0:00:00]} d5 {[%emt 0:00:00]} 4. cxd5 {[%emt 0:00:00]}
Nxd5 {[%emt 0:00:00]} 5. e4 {[%emt 0:00:00]} Nxc3 {[%emt 0:00:00]} 6. bxc3 {
[%emt 0:00:00]} Bg7 {[%emt 0:00:00]} 7. Be3 {[%emt 0:00:20]} c5 {[%emt 0:00:12]
} 8. Qd2 {[%emt 0:00:19]} O-O {[%emt 0:00:37]} 9. Rc1 {[%emt 0:01:03]} Qa5 {
[%emt 0:03:02]} 10. d5 {[%emt 0:00:32]} e6 {[%emt 0:20:16]} 11. Be2 {[%emt 0:
09:35]} Rd8 {[%emt 0:03:37]} 12. Bg5 {[%emt 0:05:44]} f6 {[%emt 0:07:28]} 13.
c4 {[%emt 0:03:51]} Qxd2+ {[%emt 0:01:46]} 14. Bxd2 {[%emt 0:00:05]} b6 {[%emt
0:14:19]} 15. h4 {[%emt 0:05:08]} Re8 {[%emt 0:08:36]} 16. Kf1 {[%emt 0:04:58]}
Ba6 {[%emt 0:05:41]} 17. h5 {[%emt 0:15:08]} Nd7 {[%emt 0:00:54]} 18. hxg6 {
[%emt 0:00:47]} hxg6 {[%emt 0:00:09]} 19. Rh3 {[%emt 0:02:09]} Bb7 {[%emt 0:08:
49]} 20. Rg3 {[%emt 0:05:21]} Nf8 {[%emt 0:02:50]} 21. Nh3 {[%emt 0:02:54]} Kf7
{[%emt 0:08:31]} 22. Bd3 {[%emt 0:14:34]} e5 {[%emt 0:03:14]} 23. Be2 {[%emt 0:
01:28]} Bc8 {[%emt 0:02:19]} 24. Rb1 {[%emt 0:03:19]} Nd7 {[%emt 0:02:33]} 25.
a4 {[%emt 0:00:55]} Rh8 {[%emt 0:00:33]} 26. Bg4 {[%emt 0:04:40]} Nf8 {[%emt 0:
01:29]} 27. Bxc8 {[%emt 0:01:14]} Rxc8 {[%emt 0:00:04]} 28. Ra3 {[%emt 0:03:37]
} Nd7 {[%emt 0:01:35]} 29. f3 {[%emt 0:00:29]} a5 {[%emt 0:01:35]} 30. Rab3 {
[%emt 0:03:22]} Bf8 {[%emt 0:00:54]} 31. Nf2 {[%emt 0:05:03]} Bd6 {[%emt 0:00:
08]} 32. Nd1 {[%emt 0:01:08]} Ke7 {[%emt 0:02:59]} 33. Nc3 {[%emt 0:00:22]}
Rh1+ {[%emt 0:00:27]} 34. Kf2 {[%emt 0:00:19]} Rxb1 {[%emt 0:00:25]} 35. Rxb1 {
[%emt 0:00:02]} Rh8 {[%emt 0:00:23]} 36. Kg1 {[%emt 0:02:33]} Rh4 {[%emt 0:00:
48]} 37. g3 {[%emt 0:00:09]} Rh8 {[%emt 0:00:49]} 38. Kg2 {[%emt 0:00:14]} Rh7
{[%emt 0:00:51]} 39. Ne2 {[%emt 0:00:50]} Bc7 {[%emt 0:00:27]} 40. Nc1 {[%emt
0:00:00]} Rh8 {[%emt 0:00:00]} 41. Nd3 {[%emt 0:00:54]} g5 {[%emt 0:09:35]} 42.
Nf2 {[%emt 0:08:44]} Nf8 {[%emt 0:03:53]} 43. Ng4 {[%emt 0:02:07]} Bd8 {[%emt
0:04:01]} 44. f4 {[%emt 0:13:16]} gxf4 {[%emt 0:04:02]} 45. gxf4 {[%emt 0:00:
04]} Nd7 {[%emt 0:07:21]} 46. fxe5 {[%emt 0:02:14]} Rg8 {[%emt 0:01:26]} 47.
Kf3 {[%emt 0:00:36]} Nxe5+ {[%emt 0:00:36]} 48. Nxe5 {[%emt 0:00:05]} fxe5 {
[%emt 0:00:01]} 49. Rh1 {[%emt 0:00:19]} Kd7 {[%emt 0:01:06]} 50. Be3 {[%emt 0:
03:43]} Rf8+ {[%emt 0:01:11]} 51. Ke2 {[%emt 0:01:19]} Rf7 {[%emt 0:00:33]} 52.
Rh5 {[%emt 0:02:17]} Bc7 {[%emt 0:00:41]} 53. Bd2 {[%emt 0:00:35]} Rg7 {[%emt
0:00:25]} 54. Be3 {[%emt 0:03:13]} Rg2+ {[%emt 0:00:54]} 55. Bf2 {[%emt 0:00:
02]} Rg7 {[%emt 0:00:24]} 56. Rh6 {[%emt 0:02:17]} Rg4 {[%emt 0:01:31]} 57.
Rh7+ {[%emt 0:00:01]} Kc8 {[%emt 0:01:17]} 58. Rh4 {[%emt 0:01:33]} Rg7 {[%emt
0:00:23]} 59. Rh5 {[%emt 0:00:35]} Rg4 {[%emt 0:00:15]} 60. Kf3 {[%emt 0:00:10]
} Rf4+ {[%emt 0:00:15]} 61. Ke3 {[%emt 0:00:05]} Rg4 {[%emt 0:00:14]} 62. Rf5 {
[%emt 0:01:00]} Rg7 {[%emt 0:01:26]} 63. Kf3 {[%emt 0:01:09]} Kd7 {[%emt 0:00:
35]} 64. Bg3 {[%emt 0:00:08]} Re7 {[%emt 0:00:12]} 65. Rh5 {[%emt 0:03:03]}
Rf7+ {[%emt 0:00:07]} 66. Ke2 {[%emt 0:00:34]} Re7 {[%emt 0:00:28]} 1/2-1/2

[Event "ETCC Women 2013"]
[Site "Warsaw"]
[Date "2013.11.12"]
[Round "5"]
[White "Yildiz, Betul Cemre"]
[Black "Hoang, Thanh Trang"]
[Result "1/2-1/2"]
[ECO "A40"]
[WhiteElo "2291"]
[BlackElo "2511"]
[PlyCount "104"]
[EventDate "2013.??.??"]
[EventCountry "POL"]
[WhiteTeam "Turkey"]
[BlackTeam "Hungary"]
[WhiteTeamCountry "TUR"]
[BlackTeamCountry "HUN"]
[TimeControl "40/5400+30:1800+30"]

1. d4 {[%emt 0:00:00]} e6 {[%emt 0:00:39]} 2. Nf3 {[%emt 0:00:00]} f5 {[%emt 0:
00:38]} 3. g3 {[%emt 0:00:35]} Nf6 {[%emt 0:00:26]} 4. Bg2 {[%emt 0:00:08]} d5
{[%emt 0:01:25]} 5. O-O {[%emt 0:01:30]} Bd6 {[%emt 0:00:23]} 6. c4 {[%emt 0:
02:12]} c6 {[%emt 0:00:45]} 7. b3 {[%emt 0:01:09]} Qe7 {[%emt 0:01:01]} 8. Bf4
{[%emt 0:04:33]} Bxf4 {[%emt 0:01:42]} 9. gxf4 {[%emt 0:00:03]} O-O {[%emt 0:
03:01]} 10. Nbd2 {[%emt 0:01:31]} Nbd7 {[%emt 0:03:00]} 11. Ne5 {[%emt 0:14:13]
} Ne4 {[%emt 0:05:56]} 12. e3 {[%emt 0:10:08]} Nxe5 {[%emt 0:05:02]} 13. dxe5 {
[%emt 0:08:17]} b6 {[%emt 0:05:41]} 14. Qc2 {[%emt 0:05:30]} Bb7 {[%emt 0:04:
41]} 15. Rfd1 {[%emt 0:03:59]} Rad8 {[%emt 0:04:51]} 16. Nf3 {[%emt 0:04:22]}
c5 {[%emt 0:05:56]} 17. Ne1 {[%emt 0:14:29]} d4 {[%emt 0:02:07]} 18. Rd3 {
[%emt 0:07:11]} Nc3 {[%emt 0:04:37]} 19. Bxb7 {[%emt 0:06:37]} Qxb7 {[%emt 0:
00:10]} 20. Qd2 {[%emt 0:00:37]} Rd7 {[%emt 0:06:22]} 21. f3 {[%emt 0:04:10]}
Rfd8 {[%emt 0:01:52]} 22. a4 {[%emt 0:04:24]} a6 {[%emt 0:02:13]} 23. Kg2 {
[%emt 0:00:56]} b5 {[%emt 0:02:33]} 24. axb5 {[%emt 0:00:04]} axb5 {[%emt 0:00:
07]} 25. exd4 {[%emt 0:00:16]} cxd4 {[%emt 0:01:10]} 26. Nc2 {[%emt 0:00:08]}
bxc4 {[%emt 0:11:16]} 27. bxc4 {[%emt 0:00:14]} Qb6 {[%emt 0:02:44]} 28. Rc1 {
[%emt 0:02:18]} Na4 {[%emt 0:05:31]} 29. Qb4 {[%emt 0:02:45]} Qxb4 {[%emt 0:01:
08]} 30. Nxb4 {[%emt 0:00:01]} Nc5 {[%emt 0:00:21]} 31. Ra3 {[%emt 0:01:48]} d3
{[%emt 0:00:23]} 32. Rd1 {[%emt 0:00:14]} d2 {[%emt 0:02:05]} 33. Kf2 {[%emt 0:
00:49]} Rb7 {[%emt 0:04:34]} 34. Nc6 {[%emt 0:00:21]} Rc8 {[%emt 0:02:39]} 35.
Nd4 {[%emt 0:00:03]} Rb2 {[%emt 0:01:17]} 36. Ke3 {[%emt 0:00:33]} Rd8 {[%emt
0:00:51]} 37. Ra5 {[%emt 0:00:35]} Nb3 {[%emt 0:01:38]} 38. Nxb3 {[%emt 0:00:
50]} Rxb3+ {[%emt 0:00:07]} 39. Ke2 {[%emt 0:00:02]} Rc3 {[%emt 0:03:22]} 40.
c5 {[%emt 0:00:00]} Rc2 {[%emt 0:00:00]} 41. Ra6 {[%emt 0:05:12]} Rxc5 {[%emt
0:11:40]} 42. Rxd2 {[%emt 0:01:08]} Rxd2+ {[%emt 0:00:37]} 43. Kxd2 {[%emt 0:
00:02]} Rd5+ {[%emt 0:01:09]} 44. Ke3 {[%emt 0:00:22]} Kf7 {[%emt 0:00:41]} 45.
Ra7+ {[%emt 0:01:15]} Kf8 {[%emt 0:00:08]} 46. Kf2 {[%emt 0:03:35]} Rd8 {[%emt
0:01:04]} 47. Kg3 {[%emt 0:00:56]} Re8 {[%emt 0:00:14]} 48. h4 {[%emt 0:00:59]}
Re7 {[%emt 0:00:10]} 49. Ra8+ {[%emt 0:01:03]} Kf7 {[%emt 0:00:06]} 50. Ra6 {
[%emt 0:00:29]} Kg6 {[%emt 0:02:09]} 51. Rb6 {[%emt 0:00:34]} Kh5 {[%emt 0:00:
25]} 52. Ra6 {[%emt 0:00:41]} Kg6 {[%emt 0:00:56]} 1/2-1/2

[Event "ETCC Women 2013"]
[Site "Warsaw"]
[Date "2013.11.12"]
[Round "5"]
[White "Zawadzka, Jolanta"]
[Black "Ushenina, Anna"]
[Result "0-1"]
[ECO "B97"]
[WhiteElo "2383"]
[BlackElo "2492"]
[PlyCount "106"]
[EventDate "2013.??.??"]
[EventCountry "POL"]
[WhiteTeam "Poland"]
[BlackTeam "Ukraine"]
[WhiteTeamCountry "POL"]
[BlackTeamCountry "UKR"]
[TimeControl "40/5400+30:1800+30"]

1. e4 {[%emt 0:00:00]} c5 {[%emt 0:00:00]} 2. Nf3 {[%emt 0:00:00]} d6 {[%emt 0:
00:00]} 3. d4 {[%emt 0:00:00]} cxd4 {[%emt 0:00:00]} 4. Nxd4 {[%emt 0:00:04]}
Nf6 {[%emt 0:00:08]} 5. Nc3 {[%emt 0:00:07]} a6 {[%emt 0:00:05]} 6. Bg5 {[%emt
0:00:19]} e6 {[%emt 0:00:15]} 7. f4 {[%emt 0:00:16]} Qb6 {[%emt 0:00:07]} 8.
Nb3 {[%emt 0:01:00]} Be7 {[%emt 0:00:28]} 9. Qf3 {[%emt 0:02:22]} Nbd7 {[%emt
0:00:52]} 10. O-O-O {[%emt 0:02:05]} Qc7 {[%emt 0:00:13]} 11. Bd3 {[%emt 0:04:
24]} b5 {[%emt 0:04:04]} 12. Kb1 {[%emt 0:03:53]} b4 {[%emt 0:05:04]} 13. Ne2 {
[%emt 0:03:56]} Bb7 {[%emt 0:01:55]} 14. Rhe1 {[%emt 0:04:41]} a5 {[%emt 0:31:
19]} 15. g4 {[%emt 0:08:50]} h6 {[%emt 0:09:30]} 16. Bxf6 {[%emt 0:15:08]} Bxf6
{[%emt 0:03:29]} 17. Nbd4 {[%emt 0:00:55]} Qb6 {[%emt 0:06:17]} 18. Nb5 {[%emt
0:07:02]} Be7 {[%emt 0:02:03]} 19. Qg3 {[%emt 0:14:10]} Nc5 {[%emt 0:01:39]}
20. e5 {[%emt 0:03:40]} dxe5 {[%emt 0:08:26]} 21. fxe5 {[%emt 0:00:32]} Nxd3 {
[%emt 0:00:16]} 22. Qxd3 {[%emt 0:00:29]} O-O {[%emt 0:00:33]} 23. Nd6 {[%emt
0:00:49]} Bd5 {[%emt 0:05:03]} 24. Nf5 {[%emt 0:07:44]} exf5 {[%emt 0:03:35]}
25. Qxd5 {[%emt 0:00:05]} fxg4 {[%emt 0:00:53]} 26. Nd4 {[%emt 0:02:09]} Rad8 {
[%emt 0:11:41]} 27. Qe4 {[%emt 0:00:11]} Rfe8 {[%emt 0:01:32]} 28. Qxg4 {[%emt
0:02:13]} Bf8 {[%emt 0:00:22]} 29. Rd3 {[%emt 0:02:22]} Rd5 {[%emt 0:01:03]}
30. Nf3 {[%emt 0:02:07]} Rxd3 {[%emt 0:01:53]} 31. cxd3 {[%emt 0:00:04]} b3 {
[%emt 0:00:12]} 32. Nd2 {[%emt 0:04:48]} bxa2+ {[%emt 0:00:11]} 33. Ka1 {[%emt
0:00:18]} Qb4 {[%emt 0:01:57]} 34. Qe2 {[%emt 0:00:18]} a4 {[%emt 0:00:25]} 35.
Nc4 {[%emt 0:02:31]} Qb3 {[%emt 0:00:18]} 36. Nd2 {[%emt 0:04:06]} Qb4 {[%emt
0:00:23]} 37. Kxa2 {[%emt 0:01:43]} Rb8 {[%emt 0:00:42]} 38. Rb1 {[%emt 0:00:
20]} Bc5 {[%emt 0:00:23]} 39. e6 {[%emt 0:00:30]} fxe6 {[%emt 0:00:27]} 40.
Qxe6+ {[%emt 0:00:00]} Kh8 {[%emt 0:00:00]} 41. Qc4 {[%emt 0:12:28]} Qxd2 {
[%emt 0:00:20]} 42. Qxc5 {[%emt 0:00:09]} Qxd3 {[%emt 0:00:12]} 43. Qa3 {[%emt
0:01:42]} Qc2 {[%emt 0:02:46]} 44. Rg1 {[%emt 0:06:32]} Qxh2 {[%emt 0:00:57]}
45. Rg4 {[%emt 0:00:24]} Qc2 {[%emt 0:01:33]} 46. Qc3 {[%emt 0:06:14]} Qb3+ {
[%emt 0:00:46]} 47. Qxb3 {[%emt 0:00:13]} axb3+ {[%emt 0:00:04]} 48. Ka3 {
[%emt 0:00:06]} Kh7 {[%emt 0:00:12]} 49. Rg3 {[%emt 0:01:22]} h5 {[%emt 0:00:
13]} 50. Rc3 {[%emt 0:01:15]} Kh6 {[%emt 0:00:11]} 51. Rc4 {[%emt 0:00:08]} Rb6
{[%emt 0:01:45]} 52. Ka4 {[%emt 0:00:05]} g5 {[%emt 0:02:11]} 53. Ka5 {[%emt 0:
00:05]} Rg6 {[%emt 0:00:24]} 0-1